fUST/lending_fUST_20250918
["ID","MTS","AMOUNT","RATE_DAILY","PERIOD"]
[386045713,1758196245460,-480.0,0.00023036,3]
[386045714,1758196245469,-1009.14,0.00023036,3]
[386045715,1758196245478,-480.0,0.00023036,3]
[386045716,1758196245487,-480.0,0.00023036,3]
[386045717,1758196245497,-480.0,0.00023036,3]
[386045718,1758196245506,-484.20977929,0.00023036,3]
[386045719,1758196245516,-480.0,0.00023036,3]
[386045720,1758196245525,-461.388152,0.00023036,3]
[386045721,1758196245534,-480.0,0.00023036,3]
[386045722,1758196245544,-480.0,0.00023036,3]
[386045723,1758196245553,-480.0,0.00023036,3]
[386045724,1758196245563,-480.0,0.00023036,3]
[386045725,1758196245572,-480.0,0.00023036,3]
[386045726,1758196245581,-480.0,0.00023036,3]
[386045727,1758196245591,-481.00994577,0.00023036,3]
[386045728,1758196245600,-337.4334268,0.00023036,3]
[386045729,1758196245610,-480.0,0.00023036,3]
[386045730,1758196245619,-481.08234993,0.00023036,3]
[386045731,1758196245629,-480.0,0.00023036,3]
[386045732,1758196245640,-480.0,0.00023036,3]
[386045733,1758196245650,-482.60967272,0.00023036,3]
[386045734,1758196245660,-480.0,0.00023036,3]
[386045735,1758196245672,-480.0,0.00023036,3]
[386045736,1758196245681,-480.0,0.00023036,3]
[386045737,1758196245691,-480.0,0.00023036,3]
[386045738,1758196245700,-480.0,0.00023036,3]
[386045739,1758196245709,-480.0,0.00023036,3]
[386045740,1758196245719,-480.0,0.00023036,3]
[386045741,1758196245727,-480.0,0.00023036,3]
[386045742,1758196245737,-481.24041176,0.00023036,3]
[386045743,1758196245746,-480.0,0.00023036,3]
[386045744,1758196245755,-480.0,0.00023036,3]
[386045745,1758196245765,-484.51808742,0.00023036,3]
[386045746,1758196245774,-480.0,0.00023036,3]
[386045747,1758196245783,-501.98150874,0.00023073,2]
[386045748,1758196245792,-500.0,0.00023073,2]
[386045749,1758196245802,-501.40540503,0.00023073,2]
[386045750,1758196245811,-500.0,0.00023073,2]
[386045751,1758196245820,-500.0,0.00023073,2]
[386045752,1758196245829,-500.0,0.00023073,2]
[386045753,1758196245839,-500.0,0.00023073,2]
[386045754,1758196245849,-411.74851658,0.00023073,2]
[386045755,1758196245859,-500.0,0.00023073,2]
[386045756,1758196245869,-500.0,0.00023073,2]
[386045757,1758196245878,-500.0,0.00023073,2]
[386045758,1758196245888,-501.66050052,0.00023073,2]
[386045759,1758196245898,-500.0,0.00023073,2]
[386045760,1758196245907,-501.37859398,0.00023073,2]
[386045761,1758196245916,-500.0,0.00023073,2]
[386045762,1758196245926,-500.0,0.00023073,2]
[386045763,1758196245935,-471.58972672,0.00023073,2]
[386045764,1758196245944,-500.0,0.00023073,2]
[386045765,1758196245954,-500.0,0.00023073,2]
[386045766,1758196245963,-500.0,0.00023073,2]
[386045767,1758196245973,-501.40528568,0.00023073,2]
[386045768,1758196245982,-500.0,0.00023073,2]
[386045769,1758196245992,-500.0,0.00023073,2]
[386045770,1758196246001,-500.0,0.00023073,2]
[386045771,1758196246011,-473.37901798,0.00023073,2]
[386045772,1758196246024,-500.0,0.00023073,2]
[386045773,1758196246034,-500.0,0.00023073,2]
[386045774,1758196246043,-500.0,0.00023073,2]
[386045775,1758196246053,-500.0,0.00023073,2]
[386045776,1758196246064,-483.70607168,0.00023137,3]
[386045777,1758196246073,-482.6242823,0.00023137,3]
[386045778,1758196246083,-480.0,0.00023137,3]
[386045779,1758196246093,-480.0,0.00023137,3]
[386045780,1758196246103,-480.0,0.00023137,3]
[386045781,1758196246113,-373.30143463,0.00023137,3]
[386045782,1758196246122,-480.85952603,0.00023137,3]
[386045783,1758196246131,-480.0,0.00023137,3]
[386045784,1758196246141,-480.0,0.00023137,3]
[386045785,1758196246150,-480.0,0.00023137,3]
[386045786,1758196246159,-480.0,0.00023137,3]
[386045787,1758196246169,-480.0,0.00023137,3]
[386045788,1758196246178,-480.0,0.00023137,3]
[386045789,1758196246188,-480.0,0.00023137,3]
[386045790,1758196246198,-480.0,0.00023137,3]
[386045791,1758196246208,-480.0,0.00023137,3]
[386045792,1758196246217,-480.0,0.00023137,3]
[386045793,1758196246227,-480.0,0.00023137,3]
[386045794,1758196246236,-480.0,0.00023137,3]
[386045795,1758196246245,-480.0,0.00023137,3]
[386045796,1758196246255,-490.30271902,0.00023137,3]
[386045797,1758196246264,-480.0,0.00023137,3]
[386045798,1758196246274,-480.0,0.00023137,3]
[386045799,1758196246283,-480.0,0.00023137,3]
[386045800,1758196246292,-480.0,0.00023137,3]
[386045801,1758196246302,-480.0,0.00023137,3]
[386045802,1758196246311,-480.0,0.00023137,3]
[386045803,1758196246320,-480.0,0.00023137,3]
[386045804,1758196246330,-480.0,0.00023137,3]
[386045805,1758196246339,-480.0,0.00023137,3]
[386045806,1758196246349,-522.25462529,0.00023137,3]
[386045807,1758196246358,-480.0,0.00023137,3]
[386045808,1758196246368,-480.0,0.00023137,3]
[386045809,1758196246377,-480.0,0.00023137,3]
[386045810,1758196246387,-480.0,0.00023137,3]
[386045811,1758196246397,-480.0,0.00023137,3]
[386045812,1758196246407,-480.0,0.00023137,3]
[386045813,1758196246416,-480.0,0.00023137,3]
[386045814,1758196246426,-480.0,0.00023137,3]
[386045815,1758196246435,-480.0,0.00023137,3]
[386045816,1758196246444,-480.0,0.00023137,3]
[386045817,1758196246454,-483.44620181,0.00023137,3]
[386045818,1758196246463,-480.0,0.00023137,3]
[386045819,1758196246473,-480.0,0.00023137,3]
[386045820,1758196246483,-480.0,0.00023137,3]
[386045821,1758196246492,-480.0,0.00023137,3]
[386045822,1758196246502,-480.0,0.00023137,3]
[386045823,1758196246511,-481.88664417,0.00023137,3]
[386045824,1758196246521,-482.81748779,0.00023137,3]
[386045825,1758196246531,-480.0,0.00023137,3]
[386045826,1758196246540,-480.0,0.00023137,3]
[386045827,1758196246549,-480.0,0.00023137,3]
[386045828,1758196246559,-272.60330583,0.00023137,3]
[386045829,1758196246569,-492.28157226,0.00023137,3]
[386045830,1758196246578,-480.0,0.00023137,3]
[386045831,1758196246587,-480.0,0.00023137,3]
[386045832,1758196246596,-480.0,0.00023137,3]
[386045833,1758196246605,-480.0,0.00023137,3]
[386045834,1758196246615,-480.0,0.00023137,3]
[386045835,1758196246624,-480.0,0.00023137,3]
[386045836,1758196246634,-480.0,0.00023137,3]
[386045837,1758196246645,-480.0,0.00023137,3]
[386045838,1758196246654,-480.0,0.00023137,3]
[386045839,1758196246664,-480.0,0.00023137,3]
[386045840,1758196246673,-480.0,0.00023137,3]
[386045841,1758196246683,-480.0,0.00023137,3]
[386045842,1758196246692,-457.58526789,0.00023139,2]
[386045843,1758196246702,-480.0,0.00023232,3]
[386045844,1758196246711,-480.0,0.00023232,3]
[386045845,1758196246721,-243.843077,0.00023233,7]
[386045846,1758196246731,-180.07888347,0.00023264,2]
[386045847,1758196246740,-602.90436573,0.00023287,2]
[386045848,1758196246749,-245.12,0.00023308,3]
[386045849,1758196246758,-516.34,0.00023308,3]
[386045850,1758196246768,-480.0,0.00023308,3]
[386045851,1758196246777,-500.0,0.0002331,2]
[386045852,1758196246787,-154.55544,0.0002331,7]
[386045853,1758196246798,-344.24244155,0.0002331,3]
[386045854,1758196246808,-163.36060131,0.0002331,3]
[386045856,1758196246817,-461.62261852,0.0002331,3]
[386045857,1758196246827,-480.0,0.0002331,3]
[386045859,1758196246837,-157.15,0.0002331,3]
[386045860,1758196246846,-480.0,0.0002331,3]
[386045861,1758196246857,-916.53,0.0002331,3]
[386045862,1758196246867,-1884.03,0.0002331,3]
[386045863,1758196246876,-228.04010136,0.0002331,3]
[386045864,1758196246885,-438.67215108,0.0002331,3]
[386045865,1758196246896,-480.0,0.0002331,3]
[386045866,1758196246905,-480.0,0.0002331,3]
[386045867,1758196246915,-480.0,0.0002331,3]
[386045868,1758196246924,-480.0,0.0002331,3]
[386045869,1758196246934,-480.0,0.0002331,3]
[386045870,1758196246943,-525.05,0.0002331,3]
[386045871,1758196246952,-1009.14,0.0002331,3]
[386045872,1758196246962,-282.48,0.0002331,3]
[386045873,1758196246971,-480.0,0.0002331,3]
[386045874,1758196246981,-531.97,0.0002331,3]
[386045875,1758196246990,-480.0,0.0002331,3]
[386045876,1758196247000,-480.0,0.0002331,3]
[386045877,1758196247009,-880.75,0.00023311,3]
[386045878,1758196247028,-480.0,0.00023411,3]
[386045879,1758196247039,-335.57,0.00023411,3]
[386045880,1758196247049,-480.0,0.00023411,3]
[386045881,1758196247058,-480.0,0.00023411,3]
[386045882,1758196247067,-480.0,0.00023411,3]
[386045883,1758196247077,-486.76939236,0.00023411,3]
[386045884,1758196247087,-266.27777908,0.00023411,3]
[386045885,1758196247098,-489.58512654,0.00023411,3]
[386045886,1758196247107,-484.58478565,0.00023411,3]
[386045887,1758196247117,-237.20510088,0.00023411,3]
[386045888,1758196247126,-481.80386156,0.00023411,3]
[386045889,1758196247135,-480.14196686,0.00023411,3]
[386045890,1758196247145,-1000.0,0.00023421,2]
[386045891,1758196247232,-1000.0,0.00023421,2]
[386045892,1758196247243,-501.15776765,0.00023421,2]
[386045893,1758196247252,-1000.0,0.00023421,2]
[386045894,1758196247261,-1000.0,0.00023421,2]
[386045895,1758196247271,-667.86066219,0.00023421,2]
[386045896,1758196247280,-1000.0,0.00023421,2]
[386045897,1758196247290,-500.0,0.00023421,2]
[386045898,1758196247299,-160.0,0.00023439,2]
[386045899,1758196247309,-160.0,0.00023439,2]
[386045900,1758196247319,-233.39271932,0.00023446,2]
[386045901,1758196247328,-847.96496735,0.00023446,2]
[386045902,1758196247338,-160.0,0.00023446,2]
[386045903,1758196247347,-160.0,0.00023446,2]
[386045904,1758196247356,-151.0,0.000235,8]
[386045905,1758196247366,-480.0,0.00023506,3]
[386045906,1758196247375,-235.075,0.00023512,4]
[386045907,1758196247385,-1000.0,0.00023521,2]
[386045908,1758196247395,-150.0,0.00023543,2]
[386045909,1758196247405,-200.0,0.00023561,3]
[386045910,1758196247414,-151.395287,0.00023569,7]
[386045911,1758196247424,-1004.347,0.00023573,2]
[386045912,1758196247433,-2158.097,0.00023573,2]
[386045913,1758196247443,-774.808,0.00023573,2]
[386045914,1758196247452,-250.0,0.00023573,2]
[386045915,1758196247461,-209.451,0.00023573,2]
[386045916,1758196247470,-516.34,0.00023582,3]
[386045917,1758196247480,-480.0,0.00023582,3]
[386045918,1758196247489,-500.0,0.00023584,2]
[386045919,1758196247499,-480.0,0.00023584,3]
[386045920,1758196247509,-916.53,0.00023584,3]
[386045921,1758196247518,-1884.03,0.00023584,3]
[386045922,1758196247527,-480.0,0.00023584,3]
[386045923,1758196247537,-518.54656153,0.00023584,3]
[386045924,1758196247546,-480.0,0.00023584,3]
[386045925,1758196247556,-480.0,0.00023584,3]
[386045926,1758196247565,-480.0,0.00023584,3]
[386045927,1758196247575,-1009.14,0.00023584,3]
[386045928,1758196247584,-480.0,0.00023584,3]
[386045929,1758196247594,-480.0,0.00023584,3]
[386045930,1758196247603,-480.0,0.00023584,3]
[386045931,1758196247613,-1004.74651727,0.00023621,2]
[386045932,1758196247623,-1000.0,0.00023621,2]
[386045933,1758196247632,-502.08287291,0.00023621,2]
[386045934,1758196247641,-1000.0,0.00023621,2]
[386045935,1758196247651,-1001.47837506,0.00023621,2]
[386045936,1758196247660,-1000.0,0.00023621,2]
[386045937,1758196247670,-508.36680306,0.00023621,2]
[386045938,1758196247679,-1000.0,0.00023621,2]
[386045939,1758196247689,-1000.0,0.00023621,2]
[386045940,1758196247699,-238.13486899,0.00023621,2]
[386045941,1758196247708,-1000.0,0.00023621,2]
[386045942,1758196247717,-500.78713878,0.00023621,2]
[386045943,1758196247727,-502.05536998,0.00023621,2]
[386045944,1758196247736,-1000.0,0.00023621,2]
[386045945,1758196247745,-502.53041432,0.00023621,2]
[386045946,1758196247755,-1000.0,0.00023621,2]
[386045947,1758196247765,-1000.0,0.00023621,2]
[386045948,1758196247774,-1000.0,0.00023621,2]
[386045949,1758196247784,-1000.0,0.00023621,2]
[386045950,1758196247793,-1000.0,0.00023621,2]
[386045951,1758196247803,-700.82010165,0.00023621,2]
[386045952,1758196247812,-480.0,0.00023685,3]
[386045953,1758196247823,-627.44,0.00023685,3]
[386045954,1758196247832,-160.0,0.0002369,2]
[386045955,1758196247841,-205.82472705,0.0002378,2]
[386045956,1758196247851,-151.0,0.0002378,2]
[386045957,1758196247860,-157.0,0.0002378,2]
[386045958,1758196247869,-151.0,0.0002378,2]
[386045959,1758196247879,-151.0,0.0002378,2]
[386045960,1758196247887,-157.0,0.00023783,3]
[386045961,1758196247898,-151.0,0.00023783,3]
[386045962,1758196247907,-158.77468404,0.00023783,3]
[386045963,1758196247916,-157.0,0.00023783,3]
[386045964,1758196247925,-151.0,0.00023783,3]
[386045965,1758196247934,-151.0,0.00023783,3]
[386045966,1758196247946,-151.0,0.00023783,3]
[386045967,1758196247955,-151.0,0.00023783,3]
[386045968,1758196247964,-151.0,0.000238,8]
[386045969,1758196247974,-516.34,0.00023856,3]
[386045970,1758196247988,-298.71,0.00023856,3]
[386045971,1758196247997,-278.06,0.00023858,3]
[386045972,1758196248007,-916.53,0.00023858,3]
[386045973,1758196248020,-1884.03,0.00023858,3]
[386045974,1758196248029,-480.0,0.00023858,3]
[386045975,1758196248039,-480.0,0.00023858,3]
[386045976,1758196248048,-480.0,0.00023858,3]
[386045977,1758196248059,-480.0,0.00023858,3]
[386045978,1758196248068,-1009.14,0.00023858,3]
[386045979,1758196248078,-480.0,0.00023858,3]
[386045980,1758196248088,-442.9048537,0.00023858,3]
[386045981,1758196248097,-480.0,0.00023858,3]
[386045982,1758196248107,-1500.0,0.00023968,2]
[386045983,1758196248116,-1500.0,0.00023968,2]
[386045984,1758196248126,-151.0,0.00023972,7]
[386045985,1758196248135,-151.0,0.00024,5]
[386045986,1758196248145,-151.0,0.00024054,2]
[386045987,1758196248155,-160.21265555,0.00024054,2]
[386045988,1758196248166,-151.0,0.00024054,2]
[386045989,1758196248176,-150.0,0.00024109,2]
[386045990,1758196248186,-516.34,0.0002413,3]
[386045991,1758196248197,-916.53,0.00024132,3]
[386045992,1758196248208,-1884.03,0.00024132,3]
[386045993,1758196248218,-480.0,0.00024132,3]
[386045994,1758196248228,-480.0,0.00024132,3]
[386045995,1758196248238,-480.0,0.00024132,3]
[386045996,1758196248248,-480.0,0.00024132,3]
[386045997,1758196248259,-1009.14,0.00024132,3]
[386045998,1758196248269,-302.0,0.00024132,3]
[386045999,1758196248280,-480.0,0.00024132,3]
[386046000,1758196248290,-1500.0,0.00024168,2]
[386046001,1758196248300,-502.61062955,0.00024168,2]
[386046002,1758196248309,-1500.0,0.00024168,2]
[386046003,1758196248319,-1500.0,0.00024168,2]
[386046004,1758196248330,-1353.509972,0.00024168,2]
[386046005,1758196248340,-1500.0,0.00024168,2]
[386046006,1758196248350,-1500.0,0.00024168,2]
[386046007,1758196248360,-1500.0,0.00024168,2]
[386046008,1758196248370,-1500.0,0.00024168,2]
[386046009,1758196248380,-1185.73446023,0.00024168,2]
[386046010,1758196248390,-945.32731612,0.00024168,2]
[386046011,1758196248400,-1500.0,0.00024168,2]
[386046012,1758196248410,-260.0,0.00024238,2]
[386046013,1758196248420,-151.0,0.000243,10]
[386046014,1758196248430,-198.0,0.00024328,2]
[386046015,1758196248440,-1036.03556288,0.00024363,7]
[386046016,1758196248527,-480.0,0.00022762,3]
[386046017,1758196248536,-480.0,0.00023036,3]
[386046018,1758196248549,-420.5241999,0.00024363,7]
[386046019,1758196248571,-159.14,0.00022487,2]
[386046020,1758196248581,-625.52347518,0.000227,2]
[386046021,1758196248591,-1148.44023722,0.00024363,7]
[386046022,1758196248600,-168.0,0.00024364,2]
[386046023,1758196248610,-2474.4125056,0.00024373,2]
[386046024,1758196248657,-625.52347515,0.00022759,2]
[386046025,1758196248667,-159.14,0.00023475,2]
[386046026,1758196248678,-250.0,0.00023573,2]
[386046027,1758196248687,-21240.4977079,0.00024373,2]
[386046028,1758196248696,-151.0,0.00024373,7]
[386046029,1758196248706,-1380.8810402,0.00024373,2]
[386046030,1758196248716,-516.34,0.00024404,3]
[386046031,1758196248726,-916.53,0.00024406,3]
[386046032,1758196248736,-1884.03,0.00024406,3]
[386046033,1758196248745,-480.0,0.00024406,3]
[386046034,1758196248755,-480.0,0.00024406,3]
[386046035,1758196248765,-480.0,0.00024406,3]
[386046036,1758196248774,-194.29,0.00024406,3]
[386046037,1758196248784,-1009.14,0.00024406,3]
[386046038,1758196248794,-480.0,0.00024406,3]
[386046039,1758196248804,-168.0,0.00024451,2]
[386046040,1758196248813,-159.14,0.00024463,2]
[386046041,1758196248823,-151.0,0.000245,8]
[386046042,1758196248832,-1000.0,0.000245,2]
[386046043,1758196248843,-496.84250867,0.000245,2]
[386046044,1758196248859,-503.15749133,0.000245,2]
[386046045,1758196248869,-1000.0,0.000245,2]
[386046046,1758196248879,-1000.0,0.000245,2]
[386046047,1758196248889,-1000.0,0.000245,2]
[386046048,1758196248900,-1000.0,0.000245,2]
[386046049,1758196248909,-1000.0,0.000245,2]
[386046050,1758196248919,-1000.0,0.000245,2]
[386046051,1758196248929,-168.0,0.00024507,2]
[386046052,1758196248938,-2000.0,0.00024516,2]
[386046053,1758196248948,-2000.0,0.00024516,2]
[386046054,1758196248957,-3307.18229147,0.00024523,2]
[386046055,1758196248967,-150.0,0.00024524,2]
[386046056,1758196248977,-168.0,0.00024531,2]
[386046057,1758196248987,-1000.0,0.000246,2]
[386046058,1758196248996,-516.34,0.00024678,3]
[386046059,1758196249007,-916.53,0.0002468,3]
[386046060,1758196249020,-1884.03,0.0002468,3]
[386046061,1758196249032,-480.0,0.0002468,3]
[386046062,1758196249042,-480.0,0.0002468,3]
[386046063,1758196249121,-308.53,0.0002468,3]
[386046064,1758196249142,-1009.14,0.0002468,3]
[386046065,1758196249152,-480.0,0.0002468,3]
[386046066,1758196249162,-151.0,0.000247,5]
[386046067,1758196249172,-293.0,0.00024712,2]
[386046068,1758196249182,-374.0,0.00024712,2]
[386046069,1758196249192,-420.0,0.00024712,2]
[386046070,1758196249202,-2000.0,0.00024716,2]
[386046071,1758196249211,-2000.0,0.00024716,2]
[386046072,1758196249220,-1680.71058613,0.00024716,2]
[386046073,1758196249230,-504.09354393,0.00024716,2]
[386046074,1758196249240,-2007.46943577,0.00024716,2]
[386046075,1758196249250,-2000.0,0.00024716,2]
[386046076,1758196249259,-1007.24635345,0.00024716,2]
[386046077,1758196249269,-2000.0,0.00024716,2]
[386046078,1758196249279,-360.0,0.00024786,2]
[386046079,1758196249288,-31296.3340955,0.000248,2]
[386046080,1758196249298,-1680.0,0.00024826,2]
[386046081,1758196249307,-500.71262316,0.00024873,2]
[386046082,1758196249317,-500.0,0.00024873,2]
[386046083,1758196249326,-500.0,0.00024873,2]
[386046084,1758196249336,-500.0,0.00024873,2]
[386046085,1758196249345,-501.68305821,0.00024873,2]
[386046086,1758196249354,-500.0,0.00024873,2]
[386046087,1758196249364,-500.0,0.00024873,2]
[386046088,1758196249374,-500.0,0.00024873,2]
[386046089,1758196249383,-340.40227719,0.00024873,2]
[386046090,1758196249392,-501.30078894,0.00024873,2]
[386046091,1758196249402,-542.4250042,0.00024873,2]
[386046092,1758196249411,-500.0,0.00024873,2]
[386046093,1758196249421,-500.0,0.00024873,2]
[386046094,1758196249430,-500.0,0.00024873,2]
[386046095,1758196249440,-500.0,0.00024873,2]
[386046096,1758196249449,-600.59112488,0.00024873,2]
[386046097,1758196249459,-500.0,0.00024873,2]
[386046098,1758196249468,-500.0,0.00024873,2]
[386046099,1758196249477,-500.0,0.00024873,2]
[386046100,1758196249487,-500.0,0.00024873,2]
[386046101,1758196249496,-500.0,0.00024873,2]
[386046102,1758196249505,-500.0,0.00024873,2]
[386046103,1758196249515,-500.0,0.00024873,2]
[386046104,1758196249524,-160.83825006,0.00024873,2]
[386046105,1758196249533,-150.0,0.00024873,2]
[386046106,1758196249542,-7824.08352388,0.0002489,2]
[386046107,1758196249553,-503.68726818,0.00024896,2]
[386046108,1758196249561,-728.06940544,0.00024896,2]
[386046109,1758196249571,-200.0,0.00024899,2]
[386046110,1758196249580,-160.65278162,0.00024899,2]
[386046111,1758196249589,-324.7621632,0.000249,2]
[386046112,1758196249598,-293.264539,0.000249,7]
[386046113,1758196249608,-155.001347,0.000249,7]
[386046114,1758196249617,-152.124298,0.000249,7]
[386046115,1758196249626,-129430.47273693,0.000249,2]
[386046116,1758196259880,2521.2431443,0.00021862,2]
[386046117,1758196285656,150.0,0.00020759,2]
[386046118,1758196286118,150.0,0.00021747,2]
[386046120,1758196370997,-303.95768345,0.000225,2]
[386046121,1758196372810,206.03798864,0.000199,2]
[386046122,1758196415029,-191.14996631,0.00022487,2]
[386046123,1758196442227,-163.992393,0.00022487,2]
[386046124,1758196498544,188.9958075,0.00021639,2]
[386046125,1758196517426,280.442239,0.00021598,2]
[386046126,1758196520347,-2378.8493536,0.00022487,2]
[386046127,1758196529429,-4757.6987072,0.00022487,2]
[386046128,1758196539418,-484.6125856,0.00022487,2]
[386046129,1758196539454,-206.03798861,0.00022487,2]
[386046130,1758196539483,-1200.0,0.00022499,2]
[386046131,1758196539512,-294.09267309,0.000225,2]
[386046132,1758196539541,-1600.43508379,0.00022573,2]
[386046133,1758196539569,-300.0,0.00022659,2]
[386046134,1758196539598,-300.0,0.00022659,2]
[386046135,1758196539627,-300.0,0.00022659,2]
[386046136,1758196553470,211.20656879,0.000199,2]
[386046137,1758196556463,178.584648,0.00021839,2]
[386046138,1758196563095,239.86212103,0.0002266,2]
[386046139,1758196570432,-60.13787897,0.0002266,2]
[386046140,1758196582068,448.18408225,0.00022569,2]
[386046141,1758196585973,355.14235931,0.00022561,2]
[386046142,1758196591928,500.0,0.0002266,2]
[386046143,1758196591955,378.6681347,0.0002266,2]
[386046144,1758196591983,500.0,0.0002266,2]
[386046145,1758196592013,500.0,0.0002266,2]
[386046146,1758196592112,500.0,0.0002266,2]
[386046147,1758196592140,500.0,0.0002266,2]
[386046148,1758196592166,500.0,0.0002266,2]
[386046149,1758196592195,500.0,0.0002266,2]
[386046150,1758196592226,522.90382134,0.0002266,2]
[386046151,1758196592253,418.90365192,0.0002266,2]
[386046152,1758196592281,500.0,0.0002266,2]
[386046153,1758196592308,490.92932241,0.0002266,2]
[386046154,1758196592336,500.0,0.0002266,2]
[386046155,1758196592367,590.01713466,0.0002266,2]
[386046156,1758196592395,500.0,0.0002266,2]
[386046157,1758196592422,500.0,0.0002266,2]
[386046158,1758196592450,500.0,0.0002266,2]
[386046159,1758196622985,300.0,0.0002266,2]
[386046160,1758196634697,374.98573547,0.0002266,3]
[386046161,1758196640718,-105.01426453,0.0002266,3]
[386046162,1758196640746,-1200.0,0.0002266,2]
[386046163,1758196644321,480.0,0.0002266,3]
[386046164,1758196668784,-480.0,0.00022661,3]
[386046165,1758196668813,-480.0,0.00022661,3]
[386046166,1758196668842,-482.89895134,0.00022661,3]
[386046167,1758196668870,-573.75389325,0.00022661,3]
[386046168,1758196668899,-486.77616937,0.00022661,3]
[386046169,1758196668931,-480.0,0.00022661,3]
[386046170,1758196668959,-480.0,0.00022661,3]
[386046171,1758196672829,-563.34820101,0.00022662,2]
[386046172,1758196679789,-480.0,0.0002266,3]
[386046173,1758196679823,-9040.01,0.00022662,2]
[386046174,1758196690561,-300.0,0.00022661,2]
[386046175,1758196690595,-9400.01,0.00022662,2]
[386046176,1758196695480,-10000.01,0.00022662,2]
[386046177,1758196698241,-10000.01,0.00022662,2]
[386046178,1758196705575,-10000.01,0.00022662,2]
[386046180,1758196733172,207.18262464,0.000199,2]
[386046181,1758196741279,371.93,0.00028,30]
[386046182,1758196744958,-156.68162977,0.00022315,2]
[386046184,1758196807059,-300.0,0.00022215,2]
[386046202,1758196822186,166.679401,0.0001083,2]
[386046204,1758196857643,-109.67196012,0.00022215,2]
[386046205,1758196877873,-50.50099487,0.00022315,2]
[386046206,1758196913224,207.18262464,0.000199,2]
[386046208,1758196982570,666.0,0.00021661,2]
[386046209,1758197016679,-172.80948069,0.0002256,2]
[386046210,1758197016707,-172.80948069,0.00022564,2]
[386046211,1758197016735,-358.5472658,0.00022564,2]
[386046212,1758197016764,-1066.95672252,0.00022573,2]
[386046213,1758197016792,-300.0,0.00022659,2]
[386046214,1758197016820,-336.17606463,0.0002266,3]
[386046215,1758197016849,-611.02,0.0002266,3]
[386046216,1758197016879,-500.0,0.0002266,2]
[386046217,1758197016908,-500.0,0.0002266,2]
[386046218,1758197016937,-500.0,0.0002266,2]
[386046219,1758197016968,-463.37197134,0.0002266,2]
[386046220,1758197019701,4126.81737536,0.0002166,2]
[386046221,1758197019731,24898.99801026,0.0002166,2]
[386046222,1758197019759,62375.55610688,0.0002166,2]
[386046223,1758197022849,-36.62802866,0.0002266,2]
[386046224,1758197022880,-500.0,0.0002266,2]
[386046225,1758197022909,-500.0,0.0002266,2]
[386046226,1758197022940,-500.0,0.0002266,2]
[386046227,1758197022969,-500.0,0.0002266,2]
[386046228,1758197022999,-500.0,0.0002266,2]
[386046229,1758197023028,-500.0,0.0002266,2]
[386046230,1758197023060,-500.0,0.0002266,2]
[386046231,1758197023090,-500.0,0.0002266,2]
[386046232,1758197023119,-500.0,0.0002266,2]
[386046233,1758197023149,-426.75394268,0.0002266,2]
[386046234,1758197023956,6331.4215244,0.00021834,2]
[386046235,1758197026680,-73.24605732,0.0002266,2]
[386046236,1758197026710,-480.04823012,0.0002266,2]